[Event "*** Titled Tuesday Blitz"]
[Site "Chess.com"]
[Date "2021.04.27"]
[Round "8"]
[White "davigator"]
[Black "tusplingher"]
[Result "0-1"]
[WhiteElo "2421"]
[BlackElo "2278"]
[TimeControl "180+1"]
[EndTime "11:27:57 PDT"]
[Termination "tusplingher won on time"]

1. e4 {[%clk 0:03:00.9]} 1... c5 {[%clk 0:02:58.3]} 2. Nf3 {[%clk 0:02:59.5]}
2... g6 {[%clk 0:02:58]} 3. c4 {[%clk 0:02:57.5]} 3... Nc6 {[%clk 0:02:55.9]} 4.
d4 {[%clk 0:02:57.1]} 4... cxd4 {[%clk 0:02:56.8]} 5. Nxd4 {[%clk 0:02:56.9]}
5... Nf6 {[%clk 0:02:57.4]} 6. Nc3 {[%clk 0:02:56.1]} 6... d6 {[%clk 0:02:56.8]}
7. Be2 {[%clk 0:02:55.9]} 7... Nxd4 {[%clk 0:02:56]} 8. Qxd4 {[%clk 0:02:56.8]}
8... Bg7 {[%clk 0:02:55.7]} 9. Be3 {[%clk 0:02:57.3]} 9... O-O {[%clk
0:02:55.6]} 10. Qd2 {[%clk 0:02:57.8]} 10... Bd7 {[%clk 0:02:51.1]} 11. Rc1
{[%clk 0:02:55.2]} 11... Bc6 {[%clk 0:02:50.7]} 12. Bd3 {[%clk 0:02:51.1]} 12...
Ng4 {[%clk 0:02:49]} 13. Bg5 {[%clk 0:02:47.4]} 13... h6 {[%clk 0:02:43.8]} 14.
Bh4 {[%clk 0:02:47.3]} 14... g5 {[%clk 0:02:43.3]} 15. Bg3 {[%clk 0:02:47.2]}
15... Ne5 {[%clk 0:02:42.9]} 16. Be2 {[%clk 0:02:45.7]} 16... Rc8 {[%clk
0:02:40.1]} 17. b3 {[%clk 0:02:45.4]} 17... a6 {[%clk 0:02:38.5]} 18. h4 {[%clk
0:02:41.9]} 18... f6 {[%clk 0:02:37.6]} 19. f4 {[%clk 0:02:33.6]} 19... Nf7
{[%clk 0:02:28.9]} 20. Bg4 {[%clk 0:02:13]} 20... Bd7 {[%clk 0:02:26.4]} 21. Bh5
{[%clk 0:02:05.6]} 21... gxf4 {[%clk 0:02:12.5]} 22. Bxf4 {[%clk 0:02:04.3]}
22... Kh7 {[%clk 0:02:11.6]} 23. Nd5 {[%clk 0:02:00.9]} 23... Ne5 {[%clk
0:02:10]} 24. O-O {[%clk 0:01:53.1]} 24... Bg4 {[%clk 0:02:00.2]} 25. Bxg4
{[%clk 0:01:50.1]} 25... Nxg4 {[%clk 0:01:58.7]} 26. Qe2 {[%clk 0:01:46.5]}
26... Ne5 {[%clk 0:01:55.9]} 27. Be3 {[%clk 0:01:43.6]} 27... Qd7 {[%clk
0:01:52.9]} 28. Nb6 {[%clk 0:01:42]} 28... Qg4 {[%clk 0:01:51.6]} 29. Rc2 {[%clk
0:01:12.9]} 29... Qxe2 {[%clk 0:01:49]} 30. Rxe2 {[%clk 0:01:12.1]} 30... Rcd8
{[%clk 0:01:48.5]} 31. Bf4 {[%clk 0:01:07.6]} 31... e6 {[%clk 0:01:44.3]} 32.
Rd1 {[%clk 0:01:03.9]} 32... f5 {[%clk 0:01:39.7]} 33. exf5 {[%clk 0:00:52.2]}
33... Rxf5 {[%clk 0:01:35.7]} 34. g3 {[%clk 0:00:52]} 34... Nc6 {[%clk
0:01:27.9]} 35. Rxe6 {[%clk 0:00:33.4]} 35... Bd4+ {[%clk 0:01:25.4]} 36. Be3
{[%clk 0:00:33.6]} 36... Bxe3+ {[%clk 0:01:16]} 37. Rxe3 {[%clk 0:00:32.7]}
37... Ne5 {[%clk 0:01:15.6]} 38. Kg2 {[%clk 0:00:26.3]} 38... Rdf8 {[%clk
0:01:13.1]} 39. Rd2 {[%clk 0:00:25.9]} 39... R5f6 {[%clk 0:01:05]} 40. Nd5
{[%clk 0:00:24]} 40... Rg6 {[%clk 0:01:00.5]} 41. Ne7 {[%clk 0:00:15.5]} 41...
Rgf6 {[%clk 0:00:59.1]} 42. Nd5 {[%clk 0:00:14.6]} 42... Rf1 {[%clk 0:00:53.6]}
43. Nf4 {[%clk 0:00:11.5]} 43... Ra1 {[%clk 0:00:49.2]} 44. Ree2 {[%clk
0:00:10.3]} 44... Rf6 {[%clk 0:00:46.8]} 45. Nh5 {[%clk 0:00:09.2]} 45... Rff1
{[%clk 0:00:43.6]} 46. Rxd6 {[%clk 0:00:08.1]} 46... Rg1+ {[%clk 0:00:43.6]} 47.
Kf2 {[%clk 0:00:06.8]} 47... Raf1+ {[%clk 0:00:41.5]} 48. Ke3 {[%clk 0:00:07]}
48... Ng4+ {[%clk 0:00:35.2]} 49. Ke4 {[%clk 0:00:06.1]} 49... Rf7 {[%clk
0:00:31.7]} 50. Kd5 {[%clk 0:00:03.9]} 50... Rf5+ {[%clk 0:00:27.3]} 51. Ke6
{[%clk 0:00:03.7]} 51... Rxh5 {[%clk 0:00:25.2]} 52. Rd7+ {[%clk 0:00:03.2]}
52... Kg6 {[%clk 0:00:24.3]} 53. Ke7 {[%clk 0:00:03]} 53... Rf5 {[%clk
0:00:20.6]} 54. Re6+ {[%clk 0:00:02.3]} 54... Rf6 {[%clk 0:00:20.5]} 55. Rxb7
{[%clk 0:00:01.8]} 55... Rxe6+ {[%clk 0:00:20.5]} 56. Kxe6 {[%clk 0:00:01.8]}
56... Re1+ {[%clk 0:00:21.2]} 57. Kd5 {[%clk 0:00:01.6]} 57... Re2 {[%clk
0:00:21.8]} 0-1

[Event "*** Titled Tuesday Blitz"]
[Site "Chess.com"]
[Date "2021.04.27"]
[Round "8"]
[White "ajedrez1101"]
[Black "tylityli"]
[Result "0-1"]
[WhiteElo "2166"]
[BlackElo "2333"]
[TimeControl "180+1"]
[EndTime "11:27:59 PDT"]
[Termination "tylityli won on time"]

1. b3 {[%clk 0:03:00.9]} 1... e5 {[%clk 0:02:58.9]} 2. Bb2 {[%clk 0:03:00.9]}
2... Nc6 {[%clk 0:02:59.4]} 3. e3 {[%clk 0:03:01.1]} 3... Nf6 {[%clk 0:02:59.4]}
4. Bb5 {[%clk 0:03:01.1]} 4... Bd6 {[%clk 0:02:59.4]} 5. Bxc6 {[%clk 0:03:01]}
5... dxc6 {[%clk 0:02:58.6]} 6. d3 {[%clk 0:03:01.5]} 6... c5 {[%clk 0:02:58.5]}
7. Nd2 {[%clk 0:03:01.6]} 7... Qe7 {[%clk 0:02:58.1]} 8. e4 {[%clk 0:03:01.5]}
8... O-O {[%clk 0:02:53.2]} 9. Ngf3 {[%clk 0:03:01.8]} 9... b5 {[%clk
0:02:45.2]} 10. O-O {[%clk 0:02:55.2]} 10... c6 {[%clk 0:02:43.7]} 11. a4 {[%clk
0:02:46.4]} 11... a6 {[%clk 0:02:42.9]} 12. Bc3 {[%clk 0:02:32.8]} 12... Bd7
{[%clk 0:02:36.1]} 13. Re1 {[%clk 0:02:30.2]} 13... Nh5 {[%clk 0:02:33]} 14. Nf1
{[%clk 0:02:20.3]} 14... Nf4 {[%clk 0:02:29.8]} 15. Ng3 {[%clk 0:02:15.1]} 15...
g6 {[%clk 0:02:28.7]} 16. Bd2 {[%clk 0:02:12.8]} 16... Ne6 {[%clk 0:02:24.6]}
17. Bh6 {[%clk 0:02:10.7]} 17... Rfc8 {[%clk 0:02:14.1]} 18. Qd2 {[%clk
0:02:04.2]} 18... f6 {[%clk 0:02:12.5]} 19. h4 {[%clk 0:01:59.9]} 19... Nd4
{[%clk 0:01:57.8]} 20. Nxd4 {[%clk 0:01:26.4]} 20... cxd4 {[%clk 0:01:58.7]} 21.
f4 {[%clk 0:01:25.6]} 21... exf4 {[%clk 0:01:49.5]} 22. Bxf4 {[%clk 0:01:24.5]}
22... Bxf4 {[%clk 0:01:48.8]} 23. Qxf4 {[%clk 0:01:24.2]} 23... Qe5 {[%clk
0:01:49.7]} 24. Rf1 {[%clk 0:01:15.7]} 24... Kg7 {[%clk 0:01:41.7]} 25. Ne2
{[%clk 0:01:08]} 25... c5 {[%clk 0:01:35.4]} 26. axb5 {[%clk 0:00:46]} 26...
axb5 {[%clk 0:01:30.5]} 27. Qxe5 {[%clk 0:00:26.5]} 27... fxe5 {[%clk 0:01:28]}
28. c4 {[%clk 0:00:19]} 28... b4 {[%clk 0:01:19.7]} 29. Ng3 {[%clk 0:00:09.7]}
29... Bg4 {[%clk 0:01:14.7]} 30. Rfe1 {[%clk 0:00:09.3]} 30... h5 {[%clk
0:01:08.1]} 31. Reb1 {[%clk 0:00:08.1]} 31... Kf6 {[%clk 0:01:04.2]} 32. Kf2
{[%clk 0:00:07.7]} 32... Ke7 {[%clk 0:00:59.9]} 33. Ke1 {[%clk 0:00:03.8]} 33...
Rf8 {[%clk 0:00:43.8]} 34. Ne2 {[%clk 0:00:04]} 34... Kd6 {[%clk 0:00:29.7]} 35.
Rc1 {[%clk 0:00:02.6]} 35... Kc7 {[%clk 0:00:28.7]} 36. Ra4 {[%clk 0:00:02.5]}
36... Rxa4 {[%clk 0:00:27.4]} 37. bxa4 {[%clk 0:00:03.4]} 37... Ra8 {[%clk
0:00:26.6]} 38. Ra1 {[%clk 0:00:03.5]} 38... Kb6 {[%clk 0:00:21.9]} 39. Nc1
{[%clk 0:00:04]} 39... Bd7 {[%clk 0:00:20.1]} 40. Nb3 {[%clk 0:00:04.3]} 40...
Rxa4 {[%clk 0:00:18.7]} 41. Rxa4 {[%clk 0:00:04.2]} 41... Bxa4 {[%clk
0:00:19.6]} 42. Na1 {[%clk 0:00:04.4]} 42... b3 {[%clk 0:00:18.9]} 43. Kd2
{[%clk 0:00:04.4]} 43... Ka5 {[%clk 0:00:19.1]} 44. Kc1 {[%clk 0:00:03.9]} 44...
b2+ {[%clk 0:00:13.3]} 45. Kxb2 {[%clk 0:00:04.3]} 45... Kb4 {[%clk 0:00:14.2]}
46. g3 {[%clk 0:00:04]} 46... Bd1 {[%clk 0:00:13.3]} 47. Nc2+ {[%clk 0:00:04]}
47... Bxc2 {[%clk 0:00:13]} 48. Kxc2 {[%clk 0:00:04.3]} 48... Ka3 {[%clk
0:00:13]} 49. Kc1 {[%clk 0:00:02]} 49... Kb3 {[%clk 0:00:12.6]} 0-1

[Event "*** Titled Tuesday Blitz"]
[Site "Chess.com"]
[Date "2021.04.27"]
[Round "8"]
[White "Vaathi_Coming"]
[Black "Gloomy_Wanderer"]
[Result "1-0"]
[WhiteElo "2892"]
[BlackElo "2740"]
[TimeControl "180+1"]
[EndTime "11:28:02 PDT"]
[Termination "Vaathi_Coming won by resignation"]

1. g3 {[%clk 0:03:00.9]} 1... d5 {[%clk 0:02:56]} 2. Bg2 {[%clk 0:03:01.8]} 2...
e6 {[%clk 0:02:56.3]} 3. b3 {[%clk 0:03:01.4]} 3... g6 {[%clk 0:02:54.7]} 4. Bb2
{[%clk 0:03:01.5]} 4... Nf6 {[%clk 0:02:55.2]} 5. e4 {[%clk 0:02:56.3]} 5...
dxe4 {[%clk 0:02:50.9]} 6. Nc3 {[%clk 0:02:56.3]} 6... Bg7 {[%clk 0:02:48.3]} 7.
Nxe4 {[%clk 0:02:56.5]} 7... O-O {[%clk 0:02:44.5]} 8. Nc3 {[%clk 0:02:35.9]}
8... e5 {[%clk 0:02:42]} 9. Nge2 {[%clk 0:02:35.8]} 9... c6 {[%clk 0:02:42.1]}
10. O-O {[%clk 0:02:33.8]} 10... Re8 {[%clk 0:02:36.6]} 11. d3 {[%clk
0:02:30.2]} 11... Bg4 {[%clk 0:02:35.9]} 12. h3 {[%clk 0:02:28.7]} 12... Be6
{[%clk 0:02:35.6]} 13. Ne4 {[%clk 0:02:28.5]} 13... Na6 {[%clk 0:02:26]} 14.
Bxe5 {[%clk 0:02:16.2]} 14... Nxe4 {[%clk 0:02:26]} 15. Bxg7 {[%clk 0:02:16.1]}
15... Nxg3 {[%clk 0:02:08]} 16. fxg3 {[%clk 0:02:15.1]} 16... Kxg7 {[%clk
0:02:07.4]} 17. Qd2 {[%clk 0:02:05.1]} 17... Bd5 {[%clk 0:02:03.1]} 18. Bxd5
{[%clk 0:01:56.3]} 18... Qxd5 {[%clk 0:02:04]} 19. Rf2 {[%clk 0:01:56.5]} 19...
Re7 {[%clk 0:02:00]} 20. Raf1 {[%clk 0:01:56.9]} 20... Rae8 {[%clk 0:02:00]} 21.
Nf4 {[%clk 0:01:56.4]} 21... Qd4 {[%clk 0:01:54.9]} 22. Kh2 {[%clk 0:01:48.7]}
22... Nc7 {[%clk 0:01:49.3]} 23. c3 {[%clk 0:01:47.7]} 23... Qe3 {[%clk
0:01:43.9]} 24. Qb2 {[%clk 0:01:31.7]} 24... Kg8 {[%clk 0:01:35.5]} 25. c4
{[%clk 0:01:25]} 25... Ne6 {[%clk 0:01:26]} 26. Nxe6 {[%clk 0:01:04]} 26... Qxe6
{[%clk 0:01:26.9]} 27. d4 {[%clk 0:01:02.4]} 27... Rd8 {[%clk 0:01:21.1]} 28.
Qc3 {[%clk 0:00:57.1]} 28... Qe4 {[%clk 0:01:16.9]} 29. Rf4 {[%clk 0:00:56.2]}
29... Qe2+ {[%clk 0:01:05.9]} 30. R1f2 {[%clk 0:00:56.1]} 30... Qd1 {[%clk
0:01:05.9]} 31. Qd2 {[%clk 0:00:24.7]} 31... Qxd2 {[%clk 0:00:50]} 32. Rxd2
{[%clk 0:00:25.6]} 32... f5 {[%clk 0:00:50.6]} 33. g4 {[%clk 0:00:22.3]} 33...
fxg4 {[%clk 0:00:50.9]} 34. hxg4 {[%clk 0:00:23.2]} 34... Kg7 {[%clk 0:00:47.4]}
35. Kg3 {[%clk 0:00:23.3]} 35... Re3+ {[%clk 0:00:46.2]} 36. Rf3 {[%clk
0:00:19.8]} 36... Rxf3+ {[%clk 0:00:34.5]} 37. Kxf3 {[%clk 0:00:20.7]} 37... Kf6
{[%clk 0:00:35.2]} 38. Kf4 {[%clk 0:00:18.4]} 38... h5 {[%clk 0:00:33.5]} 39.
gxh5 {[%clk 0:00:07.6]} 39... gxh5 {[%clk 0:00:34.4]} 40. d5 {[%clk 0:00:07.5]}
40... cxd5 {[%clk 0:00:34.1]} 41. cxd5 {[%clk 0:00:08.4]} 41... Rd7 {[%clk
0:00:27.9]} 42. Ke4 {[%clk 0:00:06.9]} 42... Rh7 {[%clk 0:00:25.5]} 43. Rf2+
{[%clk 0:00:03.3]} 43... Ke7 {[%clk 0:00:25.7]} 44. Rh2 {[%clk 0:00:02.6]} 44...
h4 {[%clk 0:00:25.4]} 45. Rh3 {[%clk 0:00:03.2]} 45... Kd6 {[%clk 0:00:25.1]}
46. Kd4 {[%clk 0:00:03.8]} 46... Rh5 {[%clk 0:00:25.2]} 47. Kc4 {[%clk
0:00:04.3]} 47... b6 {[%clk 0:00:22.6]} 48. a4 {[%clk 0:00:03.9]} 48... a6
{[%clk 0:00:23]} 49. b4 {[%clk 0:00:04.3]} 49... Rh8 {[%clk 0:00:21.3]} 50. Kd4
{[%clk 0:00:02.9]} 50... Rh7 {[%clk 0:00:21.4]} 51. Kc4 {[%clk 0:00:02.8]} 51...
Rh5 {[%clk 0:00:21.8]} 52. b5 {[%clk 0:00:03.3]} 52... a5 {[%clk 0:00:21]} 53.
Kd4 {[%clk 0:00:03]} 53... Rxd5+ {[%clk 0:00:20.7]} 54. Kc4 {[%clk 0:00:03.6]}
54... Rc5+ {[%clk 0:00:20.8]} 55. Kd4 {[%clk 0:00:03.8]} 55... Rh5 {[%clk
0:00:21.7]} 56. Kc4 {[%clk 0:00:03.3]} 56... Ke5 {[%clk 0:00:22.2]} 57. Rd3
{[%clk 0:00:03.3]} 57... h3 {[%clk 0:00:21.5]} 58. Rd5+ {[%clk 0:00:03.8]} 1-0

[Event "*** Titled Tuesday Blitz"]
[Site "Chess.com"]
[Date "2021.04.27"]
[Round "8"]
[White "atbenina64"]
[Black "anon569"]
[Result "1-0"]
[WhiteElo "2532"]
[BlackElo "2264"]
[TimeControl "180+1"]
[EndTime "11:28:02 PDT"]
[Termination "atbenina64 won on time"]

1. d4 {[%clk 0:02:55.5]} 1... Nf6 {[%clk 0:02:56.8]} 2. c4 {[%clk 0:02:52.9]}
2... e6 {[%clk 0:02:52.5]} 3. g3 {[%clk 0:02:52.7]} 3... Bb4+ {[%clk 0:02:42.8]}
4. Bd2 {[%clk 0:02:51.6]} 4... Bxd2+ {[%clk 0:02:41.8]} 5. Nxd2 {[%clk
0:02:52.5]} 5... d6 {[%clk 0:02:27.1]} 6. Ngf3 {[%clk 0:02:50.3]} 6... b6 {[%clk
0:02:25.3]} 7. Bg2 {[%clk 0:02:50.3]} 7... Bb7 {[%clk 0:02:24.8]} 8. O-O {[%clk
0:02:50.8]} 8... Nbd7 {[%clk 0:02:22.9]} 9. Qc2 {[%clk 0:02:48.7]} 9... O-O
{[%clk 0:02:21.3]} 10. b4 {[%clk 0:02:40.5]} 10... c5 {[%clk 0:02:09.3]} 11.
bxc5 {[%clk 0:02:38.4]} 11... dxc5 {[%clk 0:02:08.6]} 12. e3 {[%clk 0:02:37.9]}
12... Qc7 {[%clk 0:02:01.2]} 13. Rac1 {[%clk 0:02:27.3]} 13... Rac8 {[%clk
0:01:52.8]} 14. Rfd1 {[%clk 0:02:27.2]} 14... Rfd8 {[%clk 0:01:43.8]} 15. Qb2
{[%clk 0:02:21.3]} 15... Qb8 {[%clk 0:01:26.4]} 16. Qa3 {[%clk 0:02:04.9]} 16...
Qa8 {[%clk 0:01:24.1]} 17. Nh4 {[%clk 0:01:52.2]} 17... Bxg2 {[%clk 0:01:21.8]}
18. Nxg2 {[%clk 0:01:53.1]} 18... Qb7 {[%clk 0:01:14.6]} 19. Ne1 {[%clk
0:01:22.9]} 19... Nb8 {[%clk 0:00:41.1]} 20. Nb3 {[%clk 0:01:13.9]} 20... cxd4
{[%clk 0:00:39.9]} 21. exd4 {[%clk 0:01:14.8]} 21... Rc7 {[%clk 0:00:16.9]} 22.
Qb2 {[%clk 0:01:13.4]} 22... Rdc8 {[%clk 0:00:15.7]} 23. Qe2 {[%clk 0:01:14]}
23... Qa6 {[%clk 0:00:14.7]} 24. Nd2 {[%clk 0:00:34]} 24... Nc6 {[%clk
0:00:12.4]} 25. Nef3 {[%clk 0:00:32.8]} 25... Rd8 {[%clk 0:00:11.4]} 26. Nb3
{[%clk 0:00:30]} 26... Rcd7 {[%clk 0:00:11]} 27. Qb2 {[%clk 0:00:20.4]} 27...
Ne7 {[%clk 0:00:09.8]} 28. Ne5 {[%clk 0:00:20.1]} 28... Rc7 {[%clk 0:00:09.4]}
29. Qe2 {[%clk 0:00:19.5]} 29... Qc8 {[%clk 0:00:09.2]} 30. Re1 {[%clk
0:00:19.2]} 30... Nf5 {[%clk 0:00:09.2]} 31. Rcd1 {[%clk 0:00:18]} 31... Nd6
{[%clk 0:00:09.2]} 32. c5 {[%clk 0:00:17.5]} 32... Nde4 {[%clk 0:00:09.1]} 33.
Qf3 {[%clk 0:00:14.7]} 33... bxc5 {[%clk 0:00:09.2]} 34. Rxe4 {[%clk 0:00:12.7]}
34... Nxe4 {[%clk 0:00:08.3]} 35. Qxe4 {[%clk 0:00:13.6]} 35... c4 {[%clk
0:00:08.3]} 36. Nc5 {[%clk 0:00:13.4]} 36... Rxc5 {[%clk 0:00:07.5]} 37. Qf3
{[%clk 0:00:12.3]} 37... Rcd5 {[%clk 0:00:06.6]} 38. Qxf7+ {[%clk 0:00:11.3]}
38... Kh8 {[%clk 0:00:06.2]} 39. Qh5 {[%clk 0:00:08.6]} 39... Rf8 {[%clk
0:00:03.8]} 40. Ng6+ {[%clk 0:00:05.4]} 40... Kg8 {[%clk 0:00:04.1]} 41. Ne7+
{[%clk 0:00:06]} 41... Kh8 {[%clk 0:00:04.2]} 42. Qh3 {[%clk 0:00:04.3]} 42...
Qe8 {[%clk 0:00:03.1]} 43. Qxe6 {[%clk 0:00:03]} 43... Rd7 {[%clk 0:00:02.1]}
44. Re1 {[%clk 0:00:01.5]} 1-0

[Event "*** Titled Tuesday Blitz"]
[Site "Chess.com"]
[Date "2021.04.27"]
[Round "8"]
[White "Nikolaj_6"]
[Black "A-Fier"]
[Result "0-1"]
[WhiteElo "2652"]
[BlackElo "2830"]
[TimeControl "180+1"]
[EndTime "11:28:05 PDT"]
[Termination "A-Fier won by resignation"]

1. e4 {[%clk 0:03:00.9]} 1... Nf6 {[%clk 0:02:59.1]} 2. e5 {[%clk 0:03:00.7]}
2... Nd5 {[%clk 0:02:59.7]} 3. d4 {[%clk 0:03:01]} 3... d6 {[%clk 0:03:00.3]} 4.
c4 {[%clk 0:03:01.1]} 4... Nb6 {[%clk 0:03:00.4]} 5. exd6 {[%clk 0:03:01.4]}
5... exd6 {[%clk 0:02:59.7]} 6. Nc3 {[%clk 0:03:01.2]} 6... Be7 {[%clk
0:03:00.2]} 7. Bd3 {[%clk 0:03:01.3]} 7... Nc6 {[%clk 0:02:59.6]} 8. d5 {[%clk
0:03:00.8]} 8... Ne5 {[%clk 0:02:59.1]} 9. Nge2 {[%clk 0:02:59.9]} 9... O-O
{[%clk 0:02:56.8]} 10. b3 {[%clk 0:02:59.1]} 10... Nxd3+ {[%clk 0:02:55.7]} 11.
Qxd3 {[%clk 0:02:59]} 11... Bf6 {[%clk 0:02:56.4]} 12. O-O {[%clk 0:02:57.8]}
12... Nd7 {[%clk 0:02:57]} 13. Be3 {[%clk 0:02:52.7]} 13... Nc5 {[%clk
0:02:56.9]} 14. Qd2 {[%clk 0:02:52.1]} 14... Bf5 {[%clk 0:02:56.3]} 15. Ng3
{[%clk 0:02:47.2]} 15... Bg6 {[%clk 0:02:56.1]} 16. Bd4 {[%clk 0:02:35.8]} 16...
Re8 {[%clk 0:02:51.1]} 17. Rfe1 {[%clk 0:02:29.8]} 17... Bxd4 {[%clk 0:02:36.6]}
18. Qxd4 {[%clk 0:02:28.9]} 18... a5 {[%clk 0:02:37.5]} 19. h4 {[%clk 0:02:25]}
19... h6 {[%clk 0:02:28.9]} 20. Nb5 {[%clk 0:02:12]} 20... Qd7 {[%clk
0:02:22.5]} 21. h5 {[%clk 0:02:01.3]} 21... Bh7 {[%clk 0:02:22.1]} 22. Rad1
{[%clk 0:01:50.8]} 22... Na6 {[%clk 0:02:10]} 23. Nc3 {[%clk 0:01:40.6]} 23...
Nb4 {[%clk 0:02:09.6]} 24. Qd2 {[%clk 0:01:39.4]} 24... Nd3 {[%clk 0:02:04.5]}
25. Rxe8+ {[%clk 0:01:35.5]} 25... Rxe8 {[%clk 0:02:05.4]} 26. Nce4 {[%clk
0:01:05.2]} 26... Rxe4 {[%clk 0:02:03.4]} 27. Nxe4 {[%clk 0:01:03.6]} 27... Bxe4
{[%clk 0:02:04.3]} 28. f3 {[%clk 0:00:58.7]} 28... Bh7 {[%clk 0:02:03.1]} 29.
Qxa5 {[%clk 0:00:58.2]} 29... Qd8 {[%clk 0:01:55.6]} 30. Qd2 {[%clk 0:00:48.3]}
30... Qh4 {[%clk 0:01:53.3]} 31. Qe3 {[%clk 0:00:46]} 31... Ne5 {[%clk
0:01:42.1]} 32. Rf1 {[%clk 0:00:23.4]} 32... Qxh5 {[%clk 0:01:38.8]} 33. f4
{[%clk 0:00:23.7]} 33... Nd7 {[%clk 0:01:38.7]} 34. Qe8+ {[%clk 0:00:23.2]}
34... Nf8 {[%clk 0:01:38.9]} 35. f5 {[%clk 0:00:20.5]} 35... Bxf5 {[%clk
0:01:38.4]} 36. Qe7 {[%clk 0:00:18.8]} 36... Bd3 {[%clk 0:01:34.2]} 37. Rf3
{[%clk 0:00:18.1]} 37... Qg6 {[%clk 0:01:29.8]} 38. Qxc7 {[%clk 0:00:16.8]}
38... Be4 {[%clk 0:01:29.1]} 39. Rf2 {[%clk 0:00:17.1]} 39... f5 {[%clk
0:01:10.2]} 40. Qxb7 {[%clk 0:00:16.5]} 40... Qg5 {[%clk 0:01:10.7]} 41. Qc7
{[%clk 0:00:10.4]} 41... Qc1+ {[%clk 0:01:07.3]} 42. Rf1 {[%clk 0:00:10]} 42...
Qe3+ {[%clk 0:01:08.2]} 43. Rf2 {[%clk 0:00:10.2]} 43... Ng6 {[%clk 0:00:36.7]}
44. Qxd6 {[%clk 0:00:10]} 44... f4 {[%clk 0:00:37.5]} 45. Qe6+ {[%clk
0:00:08.3]} 45... Kh7 {[%clk 0:00:37.6]} 46. Qg4 {[%clk 0:00:08.2]} 46... f3
{[%clk 0:00:23.9]} 47. gxf3 {[%clk 0:00:07.9]} 47... Bd3 {[%clk 0:00:23.8]} 48.
f4 {[%clk 0:00:08]} 48... Be4 {[%clk 0:00:22.9]} 49. d6 {[%clk 0:00:07.1]} 49...
Qe1+ {[%clk 0:00:20.3]} 50. Rf1 {[%clk 0:00:07]} 50... Qd2 {[%clk 0:00:21]} 51.
d7 {[%clk 0:00:06.8]} 51... Nh4 {[%clk 0:00:18.8]} 52. Rf2 {[%clk 0:00:06.3]}
52... Qe1+ {[%clk 0:00:17.6]} 53. Rf1 {[%clk 0:00:06.7]} 53... Qe3+ {[%clk
0:00:17.1]} 54. Rf2 {[%clk 0:00:07.1]} 54... Nf3+ {[%clk 0:00:17.2]} 55. Qxf3
{[%clk 0:00:05.5]} 55... Bxf3 {[%clk 0:00:18.1]} 56. d8=Q {[%clk 0:00:05.3]}
56... Qe1+ {[%clk 0:00:18.8]} 57. Kh2 {[%clk 0:00:03.7]} 57... Qxf2+ {[%clk
0:00:19.1]} 58. Kh3 {[%clk 0:00:04.6]} 58... Qg2+ {[%clk 0:00:19.7]} 0-1

[Event "*** Titled Tuesday Blitz"]
[Site "Chess.com"]
[Date "2021.04.27"]
[Round "8"]
[White "Gerodot71"]
[Black "Forantes"]
[Result "0-1"]
[WhiteElo "2561"]
[BlackElo "2513"]
[TimeControl "180+1"]
[EndTime "11:28:08 PDT"]
[Termination "Forantes won by resignation"]

1. d4 {[%clk 0:03:00.9]} 1... Nf6 {[%clk 0:02:59.6]} 2. c4 {[%clk 0:03:00.6]}
2... g6 {[%clk 0:02:59.9]} 3. Nc3 {[%clk 0:03:00.1]} 3... d5 {[%clk 0:02:58.9]}
4. cxd5 {[%clk 0:03:01]} 4... Nxd5 {[%clk 0:02:59.2]} 5. e4 {[%clk 0:03:00.1]}
5... Nxc3 {[%clk 0:02:59.7]} 6. bxc3 {[%clk 0:03:00.8]} 6... Bg7 {[%clk
0:03:00.5]} 7. Bc4 {[%clk 0:03:01.2]} 7... c5 {[%clk 0:02:59.5]} 8. Ne2 {[%clk
0:03:00.5]} 8... O-O {[%clk 0:03:00.1]} 9. O-O {[%clk 0:02:59.8]} 9... cxd4
{[%clk 0:03:00.5]} 10. cxd4 {[%clk 0:02:59.8]} 10... Nc6 {[%clk 0:03:01]} 11.
Be3 {[%clk 0:02:57.2]} 11... Qa5 {[%clk 0:03:00.9]} 12. f3 {[%clk 0:02:46.8]}
12... Rd8 {[%clk 0:02:59.6]} 13. d5 {[%clk 0:02:40.4]} 13... Ne5 {[%clk
0:02:54.2]} 14. Bb3 {[%clk 0:02:38.3]} 14... e6 {[%clk 0:02:45.5]} 15. Nf4
{[%clk 0:02:22.4]} 15... exd5 {[%clk 0:02:41.5]} 16. Nxd5 {[%clk 0:02:23.3]}
16... Be6 {[%clk 0:02:37.8]} 17. Rc1 {[%clk 0:02:21.4]} 17... Nc6 {[%clk
0:02:26.9]} 18. Kh1 {[%clk 0:01:54.7]} 18... Rd7 {[%clk 0:02:18]} 19. Qe2 {[%clk
0:01:50]} 19... Rad8 {[%clk 0:02:16.1]} 20. Rfd1 {[%clk 0:01:48.9]} 20... Kh8
{[%clk 0:01:37]} 21. h4 {[%clk 0:01:39.2]} 21... h5 {[%clk 0:01:35.8]} 22. Bg5
{[%clk 0:01:33.5]} 22... Rc8 {[%clk 0:01:04.5]} 23. Be3 {[%clk 0:01:26]} 23...
Rcd8 {[%clk 0:00:44.9]} 24. g3 {[%clk 0:01:19.7]} 24... Qa3 {[%clk 0:00:36.3]}
25. Kg2 {[%clk 0:01:04.4]} 25... Qb2 {[%clk 0:00:34.8]} 26. Rc2 {[%clk
0:01:02.2]} 26... Qa3 {[%clk 0:00:32.3]} 27. Rcd2 {[%clk 0:00:52.4]} 27... Nb4
{[%clk 0:00:21]} 28. Bc5 {[%clk 0:00:41.6]} 28... Bxd5 {[%clk 0:00:19.2]} 29.
Bxd5 {[%clk 0:00:40.3]} 29... Qa5 {[%clk 0:00:16.3]} 30. Bxb4 {[%clk 0:00:25]}
30... Qxb4 {[%clk 0:00:16.9]} 31. Rd3 {[%clk 0:00:25]} 31... Qe7 {[%clk
0:00:13.9]} 32. Rc1 {[%clk 0:00:21.2]} 32... Kh7 {[%clk 0:00:14.1]} 33. f4
{[%clk 0:00:20.6]} 33... Rc7 {[%clk 0:00:12.7]} 34. Rdd1 {[%clk 0:00:20.3]}
34... Rxc1 {[%clk 0:00:12.6]} 35. Rxc1 {[%clk 0:00:20.8]} 35... Rxd5 {[%clk
0:00:13.3]} 36. Rc2 {[%clk 0:00:19.9]} 36... Rd4 {[%clk 0:00:13.5]} 37. e5
{[%clk 0:00:20]} 37... Qd7 {[%clk 0:00:14]} 38. Kh2 {[%clk 0:00:18.3]} 38... Qg4
{[%clk 0:00:11.6]} 39. Qf2 {[%clk 0:00:17.8]} 39... Rd3 {[%clk 0:00:09.1]} 40.
Re2 {[%clk 0:00:17.6]} 40... Rf3 {[%clk 0:00:08.5]} 41. Qg2 {[%clk 0:00:18.1]}
41... Bh6 {[%clk 0:00:08.2]} 42. e6 {[%clk 0:00:17.2]} 42... fxe6 {[%clk
0:00:07.5]} 43. Rc2 {[%clk 0:00:16.1]} 43... Bg7 {[%clk 0:00:07.6]} 44. Rc7
{[%clk 0:00:15.6]} 44... Re3 {[%clk 0:00:08]} 45. Rc2 {[%clk 0:00:14]} 45... Qd1
{[%clk 0:00:07.3]} 46. Rd2 {[%clk 0:00:13.7]} 46... Qe1 {[%clk 0:00:07.7]} 47.
Rc2 {[%clk 0:00:13.4]} 47... Kh6 {[%clk 0:00:07.1]} 48. Rf2 {[%clk 0:00:12]}
48... Bd4 {[%clk 0:00:06.9]} 49. Rd2 {[%clk 0:00:11.1]} 49... Bc3 {[%clk
0:00:06.8]} 50. Rc2 {[%clk 0:00:11]} 50... Bd4 {[%clk 0:00:06]} 51. f5 {[%clk
0:00:11.2]} 51... Bb6 {[%clk 0:00:06.7]} 52. f6 {[%clk 0:00:11]} 52... Re4
{[%clk 0:00:06.7]} 53. f7 {[%clk 0:00:11]} 53... Rxh4+ {[%clk 0:00:06.9]} 54.
gxh4 {[%clk 0:00:11]} 54... Qxh4+ {[%clk 0:00:07.8]} 55. Qh3 {[%clk 0:00:11.5]}
55... Qf4+ {[%clk 0:00:08.4]} 56. Qg3 {[%clk 0:00:12]} 56... Qxf7 {[%clk
0:00:08.8]} 57. Rg2 {[%clk 0:00:12.7]} 57... Bc7 {[%clk 0:00:08.9]} 58. Qxc7
{[%clk 0:00:11.3]} 58... Qxc7+ {[%clk 0:00:09.8]} 0-1